bitfinex-derivatives/quotes_BTCF0:USTF0_20250711
["timestamp","ask_amount","ask_price","bid_price","bid_amount"]
[1752250752516,1.87161015,116850.0,116840.0,0.05090167]
[1752250754111,1.81068021,116850.0,116840.0,0.22201777]
[1752250754319,1.87233537,116850.0,116840.0,0.22201777]
[1752250754514,1.81268021,116850.0,116840.0,0.05090167]
[1752250754710,1.84209501,116850.0,116840.0,0.25327807]
[1752250755115,1.81374021,116850.0,116840.0,0.25327807]
[1752250755417,1.87439703,116850.0,116840.0,0.25327807]
[1752250755617,1.81374021,116850.0,116840.0,0.25327807]
[1752250755818,0.08602028,116850.0,116840.0,0.25327807]
[1752250756119,1.01952155,116850.0,116840.0,0.31757807]
[1752250756321,1.26654075,116850.0,116840.0,0.31757807]
[1752250756524,1.09543905,116850.0,116840.0,0.31757807]
[1752250756814,0.002,116850.0,116840.0,0.31757807]
[1752250757019,0.63532,116850.0,116840.0,0.31757807]
[1752250757313,0.8054217,116850.0,116840.0,0.31757807]
[1752250757521,0.8823392,116850.0,116840.0,0.14646167]
[1752250757716,1.80357646,116850.0,116840.0,0.08216167]
[1752250757918,1.86507646,116850.0,116840.0,0.05090167]
[1752250758220,1.86507646,116850.0,116840.0,0.00181167]
[1752250758419,1.84984976,116850.0,116840.0,0.00181167]
[1752250759325,1.87362654,116850.0,116840.0,0.00181167]
[1752250759526,1.87362654,116850.0,116840.0,0.00201167]
[1752250759727,1.81293574,116850.0,116840.0,0.00201167]
[1752250760724,1.88885324,116850.0,116840.0,0.00201167]
[1752250761021,1.81393574,116850.0,116840.0,0.00201167]
[1752250761521,1.87461821,116850.0,116840.0,0.00201167]
[1752250761719,1.87561821,116850.0,116840.0,0.00201167]
[1752250762420,1.87549821,116850.0,116840.0,0.05164167]
[1752250762618,0.68186095,116850.0,116840.0,0.08290167]
[1752250762822,0.78303925,116850.0,116840.0,0.25401767]
[1752250763119,0.71953925,116850.0,116840.0,0.31931767]
[1752250763524,0.08645925,116850.0,116840.0,0.31931767]
[1752250763720,0.71949925,116850.0,116840.0,0.31931767]
[1752250764026,0.08645925,116850.0,116840.0,0.31931767]
[1752250764227,0.69572247,116850.0,116840.0,0.31931767]
[1752250764617,0.69472247,116850.0,116840.0,0.31931767]
[1752250765026,0.86582417,116850.0,116840.0,0.31931767]
[1752250765326,1.78606143,116850.0,116840.0,0.25401807]
[1752250765527,1.87423508,116850.0,116840.0,0.25401807]
[1752250765829,1.87423508,116850.0,116840.0,0.08290167]
[1752250766023,1.81355261,116850.0,116840.0,0.08290167]
[1752250766527,1.81355261,116850.0,116840.0,0.25401807]
[1752250766929,1.64245091,116850.0,116840.0,0.25401807]
[1752250767230,1.64245091,116850.0,116840.0,0.28571807]
[1752250767427,1.64345091,116850.0,116840.0,0.28571807]
[1752250767728,1.89147011,116850.0,116840.0,0.28571807]
[1752250768128,1.89147011,116850.0,116840.0,0.11460167]
[1752250768331,1.89147011,116850.0,116840.0,0.05164167]
[1752250768824,1.89147011,116850.0,116840.0,0.00201167]
[1752250769028,1.81555261,116850.0,116840.0,0.00201167]
[1752250770232,2.37598987,116850.0,116840.0,0.00201167]
[1752250770429,2.48095733,116850.0,116840.0,0.00201167]
[1752250770629,2.48195733,116850.0,116840.0,0.00201167]
[1752250770831,2.54715788,116850.0,116840.0,0.00201167]
[1752250771131,2.54715788,116850.0,116840.0,0.00075247]
[1752250771527,0.1711454,116820.0,116810.0,0.08089]
[1752250771829,0.17116,116810.0,116800.0,0.08260226]
[1752250772029,1.21757286,116810.0,116800.0,0.00171226]
[1752250772226,1.2327679,116810.0,116800.0,0.00171226]
[1752250773133,1.3327679,116810.0,116800.0,0.00171226]
[1752250773329,1.25679726,116810.0,116800.0,0.00171226]
[1752250773629,1.42802126,116810.0,116800.0,0.00171226]
[1752250773833,1.53427836,116810.0,116800.0,0.00171226]
[1752250774227,1.43427836,116810.0,116800.0,0.00171226]
[1752250774932,1.43427836,116810.0,116800.0,0.00281226]
[1752250775731,1.32802126,116810.0,116800.0,0.00281226]
[1752250775938,1.15679726,116810.0,116800.0,0.00281226]
[1752250776437,1.23258286,116810.0,116800.0,0.00281226]
[1752250777033,1.33258286,116810.0,116800.0,0.00281226]
[1752250777733,0.7721456,116810.0,116800.0,0.00281226]
[1752250777932,1.33258286,116810.0,116800.0,0.00281226]
[1752250778334,0.7721456,116810.0,116800.0,0.00281226]
[1752250778539,1.33258286,116810.0,116800.0,0.00281226]
[1752250779237,1.25679726,116810.0,116800.0,0.00281226]
[1752250779630,0.1712043,116780.0,116770.0,0.09783671]
[1752250779933,1.78556575,116780.0,116770.0,0.09783671]
[1752250780135,1.84856575,116780.0,116770.0,0.09783671]
[1752250780337,1.78800156,116780.0,116770.0,0.09783671]
[1752250780734,1.84856575,116780.0,116770.0,0.09783671]
[1752250780940,1.84856575,116780.0,116770.0,0.09983671]
[1752250781339,1.78800156,116780.0,116770.0,0.09983671]
[1752250781535,1.78800156,116780.0,116770.0,0.10183671]
[1752250782735,1.78800156,116780.0,116770.0,0.02171671]
[1752250782939,1.78800156,116780.0,116770.0,0.10183671]
[1752250783139,1.78800156,116780.0,116770.0,0.13253671]
[1752250783340,1.87874828,116780.0,116770.0,0.13253671]
[1752250783843,1.87974828,116780.0,116770.0,0.09755671]
[1752250784143,1.88174828,116780.0,116770.0,0.09555671]
[1752250784741,1.94231247,116780.0,116770.0,0.06485671]
[1752250785040,1.88074828,116780.0,116770.0,0.01771671]
[1752250785740,1.94131247,116780.0,116770.0,0.01771671]
[1752250786243,1.88074828,116780.0,116770.0,0.01771671]
[1752250786638,1.32031102,116780.0,116770.0,0.06485671]
[1752250786843,1.88074828,116780.0,116770.0,0.09783671]
[1752250787143,1.88074828,116780.0,116770.0,0.12933671]
[1752250787347,1.87798176,116780.0,116770.0,0.12933671]
[1752250788232,1.81754828,116780.0,116770.0,0.12933671]
[1752250788432,1.81754828,116780.0,116770.0,0.16093671]
[1752250789538,1.87797094,116780.0,116770.0,0.16093671]
[1752250790435,1.87793094,116780.0,116770.0,0.06505671]
[1752250790635,1.94013094,116780.0,116770.0,0.01791671]
[1752250790937,1.31923102,116780.0,116770.0,0.04734]
[1752250791140,1.87966828,116780.0,116770.0,0.04734]
[1752250792245,1.95537352,116780.0,116770.0,0.04734]
[1752250792946,1.87966828,116780.0,116770.0,0.04734]
[1752250793441,1.24738828,116780.0,116770.0,0.11172]
[1752250793647,1.25695102,116780.0,116770.0,0.11172]
[1752250793945,1.81738828,116780.0,116770.0,0.11172]
[1752250794141,0.09274672,116780.0,116770.0,0.14362]
[1752250794346,0.89611062,116780.0,116770.0,0.14362]
[1752250794739,0.09274672,116780.0,116770.0,0.6756386]
[1752250794940,0.13254931,116780.0,116770.0,1.23607586]
[1752250795142,0.07211487,116780.0,116770.0,1.40734786]
[1752250795349,0.07570524,116800.0,116790.0,0.1327309]
[1752250795542,0.07570524,116800.0,116790.0,1.34009158]
[1752250795740,0.20464148,116810.0,116800.0,0.2041546]
[1752250795940,0.002,116810.0,116800.0,1.20493186]
[1752250796146,0.002,116810.0,116800.0,0.6751946]
[1752250796844,0.17316,116810.0,116800.0,0.6751947]
[1752250797044,0.25207524,116810.0,116800.0,0.14122]
[1752250797249,0.25207524,116810.0,116800.0,0.3083947]
[1752250797745,0.08091524,116810.0,116800.0,0.3083947]
[1752250797950,0.25207524,116810.0,116800.0,0.3093947]
[1752250798251,0.17637,116810.0,116800.0,0.3093947]
[1752250798442,0.25208528,116810.0,116800.0,0.3093947]
[1752250798948,0.27272923,116810.0,116800.0,0.3093947]
[1752250799149,0.07771528,116810.0,116800.0,1.23063196]
[1752250799345,0.07771528,116810.0,116800.0,1.23163196]
[1752250799549,0.14597077,116810.0,116800.0,1.23163196]
[1752250800550,0.14714872,116810.0,116800.0,1.23163196]
[1752250800850,0.31830832,116810.0,116800.0,0.6711947]
[1752250801050,0.31830832,116810.0,116800.0,1.23163196]
[1752250801252,0.14714872,116810.0,116800.0,1.23163196]
[1752250801552,0.14714872,116810.0,116800.0,1.40285596]
[1752250801751,0.07889323,116810.0,116800.0,1.65285596]
[1752250802046,0.02889323,116810.0,116800.0,1.65285596]
[1752250802250,0.02771528,116830.0,116820.0,0.251265]
[1752250802445,0.02771528,116830.0,116820.0,2.43638226]
[1752250802752,0.715756,116850.0,116840.0,0.2512356]
[1752250803049,0.03481,116850.0,116840.0,0.2514356]
[1752250803244,0.002,116850.0,116840.0,1.9420756]
[1752250803447,0.002,116850.0,116840.0,2.50251286]
[1752250803649,0.002,116850.0,116840.0,2.50151286]
[1752250803846,0.002,116850.0,116840.0,1.9410756]
[1752250804052,0.002,116850.0,116840.0,2.50151286]
[1752250804250,0.002,116850.0,116840.0,2.67268086]
[1752250804646,0.002,116850.0,116840.0,2.67568086]
[1752250804853,0.002,116850.0,116840.0,2.1152436]
[1752250805351,0.002,116850.0,116840.0,2.67568086]
[1752250805655,0.6220012,116870.0,116860.0,0.2939775]
[1752250805656,0.07023897,116870.0,116860.0,0.2939775]
[1752250805857,0.03281,116880.0,116870.0,0.2565934]
[1752250806158,0.03281,116880.0,116870.0,0.3703134]
[1752250806563,0.39561,116890.0,116880.0,0.2040375]
[1752250806749,0.002,116890.0,116880.0,0.2517975]
[1752250807056,0.002,116890.0,116880.0,2.43611476]
[1752250807254,0.002,116890.0,116880.0,2.85722676]
[1752250807851,0.002,116890.0,116880.0,2.85622676]
[1752250808056,0.00160597,116890.0,116880.0,2.85622676]
[1752250808255,0.00160597,116890.0,116880.0,2.60622676]
[1752250808858,0.00160597,116890.0,116880.0,2.88742676]
[1752250809059,0.47285,116920.0,116910.0,0.1710132]
[1752250809262,0.3608,116920.0,116910.0,0.2168332]
[1752250809462,0.3608,116920.0,116910.0,0.2791332]
[1752250809865,1.14182586,116920.0,116910.0,0.10812]
[1752250810164,1.17292586,116920.0,116910.0,0.04582]
[1752250810463,1.20602586,116920.0,116910.0,0.04582]
[1752250810665,1.20602586,116920.0,116910.0,0.2168332]
[1752250810865,1.03702726,116920.0,116910.0,0.2168332]
[1752250811159,0.47659,116920.0,116910.0,0.2168332]
[1752250811466,0.6475886,116920.0,116910.0,0.07942]
[1752250811660,1.20802586,116920.0,116910.0,0.2168332]
[1752250812263,1.03702726,116920.0,116910.0,0.2474132]
[1752250812565,0.03338,116920.0,116910.0,0.2474132]
[1752250812761,0.03338,116920.0,116910.0,1.23255046]
[1752250812762,0.002,116920.0,116910.0,1.23255046]
[1752250812963,0.002,116920.0,116910.0,0.9424732]
[1752250813165,0.03338,116920.0,116910.0,0.9424732]
[1752250813561,0.64340726,116920.0,116910.0,0.2782133]
[1752250813761,0.14647,116920.0,116910.0,0.2474132]
[1752250813959,0.70690726,116920.0,116910.0,0.2474132]
[1752250815062,0.65731726,116920.0,116910.0,0.2474132]
[1752250815264,0.002,116920.0,116910.0,0.87215046]
[1752250815463,0.002,116920.0,116910.0,1.20237046]
[1752250816167,0.38177885,116960.0,116950.0,0.1709548]
[1752250816362,0.38177885,116960.0,116950.0,0.04582]
[1752250816363,0.3608,116960.0,116950.0,0.04582]
[1752250816562,0.3608,116960.0,116950.0,0.2485748]
[1752250817160,0.51315128,116970.0,116960.0,0.2165606]
[1752250817367,0.43046128,116970.0,116960.0,0.2167606]
[1752250817565,0.43046128,116970.0,116960.0,0.2435606]
[1752250817868,0.46356128,116970.0,116960.0,0.2435606]
[1752250818068,0.363,116970.0,116960.0,0.2435606]
[1752250818265,1.09436316,116970.0,116960.0,0.2435606]
[1752250818462,0.95653726,116970.0,116960.0,0.2435606]
[1752250818666,0.6166159,116970.0,116960.0,0.2435606]
[1752250818861,0.6166159,116970.0,116960.0,0.2117606]
[1752250819082,0.6166159,116970.0,116960.0,0.04582]
[1752250819477,0.6166159,116970.0,116960.0,0.2167602]
[1752250819772,0.6166157,116970.0,116960.0,0.04882]
[1752250819973,1.17705296,116970.0,116960.0,0.04882]
[1752250820371,1.17705296,116970.0,116960.0,0.0032]
[1752250820575,0.3961,116970.0,116960.0,0.2197603]
[1752250821071,0.0353,116970.0,116960.0,0.2516603]
[1752250821572,0.2062258,116970.0,116960.0,0.08072]
[1752250821772,0.44569,116970.0,116960.0,0.2516604]
[1752250822281,0.08606697,116970.0,116960.0,0.2526604]
[1752250822677,0.00337697,116970.0,116960.0,0.2526604]
[1752250822885,0.00337697,116970.0,116960.0,0.81309766]
[1752250823078,0.17430267,116970.0,116960.0,0.08172]
[1752250823379,1.14512993,116970.0,116960.0,0.04982]
[1752250823580,1.20962993,116970.0,116960.0,0.04992]
[1752250823879,1.20962993,116970.0,116960.0,0.0043]
[1752250824281,0.2205596,116940.0,116930.0,0.06337353]
[1752250824585,1.14179686,116940.0,116930.0,0.06337353]
[1752250824778,1.20559686,116940.0,116930.0,0.06337353]
[1752250825177,1.27572221,116940.0,116930.0,0.01775353]
[1752250826080,1.27572221,116940.0,116930.0,0.01875353]
[1752250826281,1.27572221,116940.0,116930.0,0.01975353]
[1752250826484,1.37572221,116940.0,116930.0,0.01975353]
[1752250826782,1.37572221,116940.0,116930.0,0.01875353]
[1752250827086,1.37572221,116940.0,116930.0,0.01885353]
[1752250827087,1.37672221,116940.0,116930.0,0.01885353]
[1752250827386,1.90744221,116940.0,116930.0,0.06447353]
[1752250827585,1.90744221,116940.0,116930.0,0.01885353]
[1752250827780,1.90744221,116940.0,116930.0,0.01785353]
[1752250827980,1.90844221,116940.0,116930.0,0.01785353]
[1752250828687,1.90848221,116940.0,116930.0,0.06347353]
[1752250828986,1.34804485,116940.0,116930.0,0.06347353]
[1752250829185,1.90748211,116940.0,116930.0,0.06347353]
[1752250829380,1.90848211,116940.0,116930.0,0.06347353]
[1752250829585,1.90848211,116940.0,116930.0,0.01785353]
[1752250830289,1.90748211,116940.0,116930.0,0.01785353]
[1752250830486,1.34704485,116940.0,116930.0,0.01785353]
[1752250830787,0.18351535,116940.0,116930.0,0.18983783]
[1752250830982,0.18351535,116940.0,116930.0,0.23545783]
[1752250830983,0.81427535,116940.0,116930.0,0.23545783]
[1752250831177,0.98524495,116940.0,116930.0,0.06447353]
[1752250831379,0.67500423,116940.0,116930.0,0.23445783]
[1752250831586,0.74532697,116940.0,116930.0,0.23445783]
[1752250831785,0.91629687,116940.0,116930.0,0.06347353]
[1752250832088,0.11456697,116940.0,116930.0,0.23445803]
[1752250832289,0.74532697,116940.0,116930.0,0.23445803]
[1752250832489,0.74532697,116940.0,116930.0,0.23645803]
[1752250833081,0.74532697,116940.0,116930.0,0.23945803]
[1752250833082,1.10612697,116940.0,116930.0,0.23945803]
[1752250833590,0.47536697,116940.0,116930.0,0.23845803]
[1752250833785,0.11456697,116940.0,116930.0,0.23845803]
[1752250834090,0.74532697,116940.0,116930.0,0.23845803]
[1752250834289,0.74532697,116940.0,116930.0,0.23645803]
[1752250834488,0.74532697,116940.0,116930.0,0.23745803]
[1752250834689,0.81232842,116940.0,116930.0,0.23745803]
[1752250834989,0.00117697,116940.0,116930.0,0.26575803]
[1752250835190,0.63189697,116940.0,116930.0,0.26975803]
[1752250836184,0.00117697,116940.0,116930.0,0.26975803]
[1752250836381,0.00117697,116940.0,116930.0,0.63055803]
[1752250836588,0.00117697,116940.0,116930.0,1.22109529]
[1752250837394,0.00117697,116940.0,116930.0,1.69202729]
[1752250837789,0.00117697,116940.0,116930.0,1.52099529]
[1752250838390,1.11103585,116970.0,116960.0,0.2165606]
[1752250838587,0.06992585,116970.0,116960.0,0.2165606]
[1752250838793,0.002,116970.0,116960.0,1.20179786]
[1752250839496,0.002,116970.0,116960.0,1.83251786]
[1752250839688,0.002,116970.0,116960.0,1.85010466]
[1752250839891,0.003,116970.0,116960.0,1.85010466]
[1752250840192,0.003,116970.0,116960.0,1.2896671]
[1752250841297,0.005,116970.0,116960.0,1.2896671]
[1752250841493,0.0052,116970.0,116960.0,0.6591471]
[1752250841797,0.0042,116970.0,116960.0,0.6621471]
[1752250841998,0.0022,116970.0,116960.0,0.6631471]
[1752250842491,0.0022,116970.0,116960.0,1.22358436]
[1752250842691,0.0022,116970.0,116960.0,1.39457636]
[1752250842889,0.0022,116970.0,116960.0,2.02513636]
[1752250843089,0.0022,116970.0,116960.0,1.2937071]
[1752250843490,0.08372,116970.0,116960.0,1.2937071]
[1752250843695,0.0022,116970.0,116960.0,1.2937071]
[1752250844095,0.0022,116970.0,116960.0,1.85414436]
[1752250844798,0.0022,116970.0,116960.0,1.2937071]
[1752250845691,0.0022,116970.0,116960.0,0.6631471]
[1752250845898,0.0022,116970.0,116960.0,1.293668]
[1752250846501,0.0022,116970.0,116960.0,1.262468]
[1752250846704,0.0336,116970.0,116960.0,1.262468]
[1752250846900,0.0022,116970.0,116960.0,1.293668]
[1752250848602,0.0022,116970.0,116960.0,1.85410526]
[1752250850204,0.10667114,117000.0,116990.0,0.04606]
[1752250850399,0.564968,117010.0,116990.0,1.44716846]
[1752250850599,0.44352,117010.0,117000.0,0.2169425]
[1752250850799,0.6463879,117010.0,117000.0,0.04606]
[1752250851210,0.47552,117010.0,117000.0,0.2159425]
[1752250851606,0.47552,117010.0,117000.0,0.2458425]
[1752250851807,0.47752,117010.0,117000.0,0.2458425]
[1752250852110,0.3961,117010.0,117000.0,0.2458425]
[1752250852409,0.3961,117010.0,117000.0,0.2760425]
[1752250852804,0.5669679,117010.0,117000.0,0.10516]
[1752250852998,0.6163879,117010.0,117000.0,0.10516]
[1752250853401,0.6163879,117010.0,117000.0,0.2760425]
[1752250853600,0.6163879,117010.0,117000.0,0.07496]
[1752250853601,1.17882516,117010.0,117000.0,0.07496]
[1752250853799,0.6492879,117010.0,117000.0,0.07496]
[1752250854000,1.20772516,117010.0,117000.0,0.2498425]
[1752250854210,1.27707255,117010.0,117000.0,0.2498425]
[1752250854711,0.74743529,117010.0,117000.0,0.2811725]
[1752250855010,0.74543529,117010.0,117000.0,0.2831725]
[1752250855210,0.74543529,117010.0,117000.0,0.11229]
[1752250855405,0.21376739,117010.0,117000.0,0.2831728]
[1752250855608,0.002,117010.0,117000.0,0.84361006]
[1752250855806,0.002,117010.0,117000.0,1.20488006]
[1752250857110,0.002,117010.0,117000.0,1.37581606]
[1752250857314,0.6855517,117040.0,117030.0,0.04606]
[1752250857511,0.6855517,117040.0,117030.0,0.2168989]
[1752250857512,0.47202,117040.0,117030.0,0.2168989]
[1752250857704,0.1297566,117040.0,117030.0,0.2168989]
[1752250858107,0.13008288,117040.0,117030.0,0.2168989]
[1752250858303,0.13008288,117040.0,117030.0,0.2816989]
[1752250858503,0.13008288,117040.0,117030.0,0.6424989]
[1752250858811,0.002,117050.0,117040.0,0.2168841]
[1752250859012,0.11512,117050.0,117040.0,0.2168841]
[1752250860213,0.11512,117050.0,117040.0,0.04606]
[1752250860412,0.11812,117050.0,117040.0,0.04606]
[1752250860711,0.11812,117050.0,117040.0,0.2168841]
[1752250860908,0.2202472,117040.0,117030.0,0.04606]
[1752250861104,0.04942,117030.0,117020.0,0.2169136]
[1752250861307,0.67085726,117030.0,117020.0,0.04606]
[1752250861909,0.11042,117030.0,117020.0,0.04606]
[1752250862107,0.281259,117030.0,117020.0,0.04606]
[1752250862311,0.04942,117020.0,117010.0,0.06386253]
[1752250862613,1.03385726,117020.0,117010.0,0.06386253]
[1752250863006,1.20471086,117020.0,117010.0,0.06386253]
[1752250863208,0.41022,117030.0,117020.0,0.1708536]
[1752250863415,0.47342,117030.0,117020.0,0.77735086]
[1752250863611,0.42953208,117040.0,117020.0,0.83476064]
[1752250863810,0.42953208,117040.0,117030.0,0.77733626]
[1752250864011,0.49273208,117040.0,117030.0,0.77733626]
[1752250864204,0.13193208,117040.0,117030.0,0.77733626]
[1752250864410,0.35217648,117040.0,117030.0,0.04606]
[1752250864611,1.27341374,117040.0,117030.0,0.04606]
[1752250864913,0.2202731,117020.0,117010.0,0.002]
[1752250865111,0.2202877,117010.0,117000.0,0.00170933]
[1752250865310,1.47386096,117010.0,117000.0,0.00170933]
[1752250865717,1.37386096,117010.0,117000.0,0.00170933]
[1752250865914,0.47162,117010.0,117000.0,0.00170933]
[1752250866112,1.2723677,117010.0,117000.0,0.04776933]
[1752250866509,1.83280496,117010.0,117000.0,0.04776933]
[1752250866710,1.2723677,117010.0,117000.0,0.04776933]
[1752250866912,1.83300496,117010.0,117000.0,0.04796933]
[1752250867111,1.03225726,117010.0,117000.0,0.21885163]
[1752250867307,0.11102,117010.0,117000.0,0.21885163]
[1752250867507,0.9117677,117010.0,117000.0,0.04796933]
[1752250868513,1.2725677,117010.0,117000.0,0.04796933]
[1752250869015,1.2725677,117010.0,117000.0,0.04806933]
[1752250869717,1.2725677,117010.0,117000.0,0.04906933]
[1752250870017,0.7409,117010.0,117000.0,0.04906933]
[1752250870316,1.2725674,117010.0,117000.0,0.04906933]
[1752250870712,1.83300466,117010.0,117000.0,0.04906933]
[1752250872117,0.47282,117010.0,117000.0,0.21995133]
[1752250872416,1.2734874,117010.0,117000.0,0.04906933]
[1752250872812,1.2734874,117010.0,117000.0,0.04806933]
[1752250873017,1.83392466,117010.0,117000.0,0.04806933]
[1752250873215,1.83392466,117010.0,117000.0,0.00200933]
[1752250873613,1.83392466,117010.0,117000.0,0.04900933]
[1752250873917,1.2724874,117010.0,117000.0,0.05100933]
[1752250874124,0.74082,117010.0,117000.0,0.22189123]
[1752250874417,0.75525114,117010.0,117000.0,0.25409123]
[1752250874610,0.75525114,117010.0,117000.0,0.28539123]
[1752250875014,0.07607114,117010.0,117000.0,0.28539123]
[1752250875313,0.29390854,117010.0,117000.0,0.47430933]
[1752250875516,0.14556727,117010.0,117000.0,0.84482859]
[1752250875721,0.14556727,117010.0,117000.0,1.20562859]
[1752250876316,0.14456727,117010.0,117000.0,1.20662859]
[1752250876816,0.0002,117010.0,117000.0,1.67846459]
[1752250877620,0.0002,117010.0,117000.0,2.17846459]
[1752250878325,0.0002,117010.0,117000.0,2.18046459]
[1752250878527,0.0002,117010.0,117000.0,2.18346459]
[1752250879325,0.0002,117010.0,117000.0,1.62302733]
[1752250879620,0.0002,117010.0,117000.0,2.18346459]
[1752250880425,0.60660726,117010.0,117000.0,0.62050933]
[1752250880621,0.60660726,117010.0,117000.0,0.72689123]
[1752250880821,0.81047456,117010.0,117000.0,0.91680933]
[1752250881019,0.84247456,117010.0,117000.0,0.91680933]
[1752250881424,0.84247456,117010.0,117000.0,0.91380933]
[1752250881629,1.20327456,117010.0,117000.0,0.50400933]
[1752250881826,1.03240726,117010.0,117000.0,0.17489123]
[1752250882124,0.11117,117010.0,117000.0,0.58269123]
[1752250882326,0.11117,117010.0,117000.0,0.64619123]
[1752250882528,0.0002,117010.0,117000.0,1.20662849]
[1752250883024,0.0002,117010.0,117000.0,1.20562849]
[1752250883228,0.0002,117010.0,117000.0,1.20662849]
[1752250884429,0.0002,117010.0,117000.0,0.64619123]
[1752250885531,0.04617,117010.0,117000.0,0.61449123]
[1752250885729,0.04617,117010.0,117000.0,1.24405123]
[1752250886032,0.07647,117010.0,117000.0,1.24405123]
[1752250886232,0.0002,117010.0,117000.0,1.57665123]
[1752250888227,0.0002,117010.0,117000.0,2.13708849]
[1752250889430,0.0002,117010.0,117000.0,1.83718849]
[1752250890130,0.12184114,117040.0,117010.0,0.047]
[1752250890336,0.1062571,117040.0,117030.0,0.5316383]
[1752250890532,0.1062571,117040.0,117030.0,1.1251776]
[1752250890734,1.61185208,117050.0,117040.0,0.047]
[1752250891132,1.4618266,117050.0,117040.0,0.047]
[1752250891434,0.1708383,117030.0,117020.0,1.05508968]
[1752250891636,0.60640726,117030.0,117020.0,0.86514258]
[1752250891829,0.66810726,117030.0,117020.0,0.86514258]
[1752250892138,0.66810726,117030.0,117020.0,0.69428968]
[1752250892339,0.66810726,117030.0,117020.0,0.86514258]
[1752250892340,0.10767,117030.0,117020.0,0.86514258]
[1752250893437,0.10867,117030.0,117020.0,0.86514258]
[1752250893642,0.10867,117030.0,117020.0,0.23574258]
[1752250894137,0.18462049,117030.0,117020.0,0.06488968]
[1752250894337,0.79397546,117030.0,117010.0,1.2934483]
[1752250894538,0.66850726,117020.0,117010.0,0.047]
[1752250894737,1.02930726,117020.0,117010.0,0.2178674]
[1752250894937,1.02930726,117020.0,117010.0,0.047]
[1752250894938,1.27611055,117020.0,117010.0,0.047]
[1752250895134,1.10525775,117020.0,117010.0,0.047]
[1752250895844,1.10525775,117020.0,117000.0,0.17696743]
[1752250896033,0.10907,117010.0,117000.0,0.97715733]
[1752250896238,0.10907,117010.0,117000.0,0.93443713]
[1752250896535,0.18502049,117010.0,117000.0,0.93443713]
[1752250896939,1.10625775,117010.0,117000.0,0.00180933]
[1752250897438,1.37473775,117010.0,117000.0,0.00180933]
[1752250897632,1.54560545,117010.0,117000.0,0.00180933]
[1752250898542,1.29878726,117010.0,117000.0,0.00280933]
[1752250898744,1.29878726,117010.0,117000.0,0.17369163]
[1752250899240,1.29978726,117010.0,117000.0,0.00280933]
[1752250899434,1.29978726,117010.0,117000.0,0.00180933]
[1752250899943,1.37571626,117010.0,117000.0,0.00180933]
[1752250900142,1.54658396,117010.0,117000.0,0.00180933]
[1752250900444,1.47065496,117010.0,117000.0,0.00180933]
[1752250902638,0.14232,117010.0,117000.0,0.25045163]
[1752250902837,0.14232,117010.0,117000.0,0.07956933]
[1752250903039,0.12155529,117030.0,117010.0,0.03043]
[1752250903243,0.07596529,117040.0,117020.0,2.78430986]
[1752250903542,0.07596529,117040.0,117030.0,0.6716985]
[1752250903543,0.26008245,117040.0,117030.0,0.6716985]
[1752250903846,0.12157535,117040.0,117030.0,0.6412685]
[1752250904042,0.07598535,117040.0,117030.0,1.20170576]
[1752250904242,0.1082571,117050.0,117040.0,0.2181539]
[1752250904446,0.1082571,117050.0,117040.0,2.46113116]
[1752250904741,0.04559,117080.0,117070.0,0.1707802]
[1752250904946,0.10779,117080.0,117070.0,1.11989344]
[1752250905242,0.0622,117080.0,117070.0,1.18529344]
[1752250905444,0.0622,117080.0,117070.0,1.18429344]
[1752250905751,0.0622,117080.0,117070.0,0.62385618]
[1752250905937,0.06362422,117090.0,117070.0,0.70460718]
[1752250906138,0.10979,117090.0,117080.0,0.2180957]
[1752250906347,0.002,117090.0,117080.0,2.39329296]
[1752250906539,0.002,117090.0,117080.0,2.45869296]
[1752250907041,0.1520539,117100.0,117090.0,0.1707511]
[1752250907243,0.1520539,117100.0,117090.0,1.20221836]
[1752250907244,0.1522539,117100.0,117090.0,1.20221836]
[1752250907443,0.0002,117100.0,117090.0,1.39083441]
[1752250907836,0.0002,117100.0,117090.0,1.38683441]
[1752250908036,0.1520539,117120.0,117110.0,0.218052]
[1752250908243,0.1540539,117130.0,117120.0,0.2180374]
[1752250908547,0.1540539,117130.0,117120.0,1.13927466]
[1752250908842,0.1540539,117130.0,117120.0,1.19677466]
[1752250909041,0.002,117130.0,117120.0,1.19677466]
[1752250909248,0.006,117130.0,117120.0,0.6363374]
[1752250909544,0.008,117130.0,117120.0,0.6363374]
[1752250909741,0.008,117130.0,117120.0,1.19677466]
[1752250910938,0.00570553,117130.0,117120.0,1.19677466]
[1752250911351,0.6926,117160.0,117140.0,0.0853359]
[1752250911641,0.2344493,117160.0,117150.0,0.07963]
[1752250911950,0.6408393,117160.0,117150.0,0.04733]
[1752250912142,0.04559,117150.0,117140.0,0.04733]
[1752250912342,0.84049106,117150.0,117130.0,1.0217]
[1752250912639,0.04559,117140.0,117130.0,0.611123]
[1752250913145,0.07689,117140.0,117130.0,0.250323]
[1752250913342,0.07689,117140.0,117120.0,0.54733]
[1752250913343,0.04559,117130.0,117120.0,0.54733]
[1752250913547,1.20172026,117130.0,117120.0,0.04903758]
[1752250913747,1.20172026,117130.0,117120.0,0.21974518]
[1752250913748,0.47059,117130.0,117120.0,0.21974518]
[1752250913951,0.10979,117130.0,117120.0,0.21974518]
[1752250914452,0.10979,117130.0,117120.0,0.24994518]
[1752250914948,1.09047225,117130.0,117120.0,0.05403758]
[1752250915151,1.09047225,117130.0,117120.0,0.00670758]
[1752250915450,2.13967225,117130.0,117120.0,0.00970758]
[1752250915642,1.51123225,117130.0,117120.0,0.00970758]
[1752250915840,2.23967225,117130.0,117120.0,0.00970758]
[1752250916945,1.88967225,117130.0,117120.0,0.00970758]
[1752250917143,0.47059,117130.0,117120.0,0.00770758]
[1752250917349,0.47059,117130.0,117120.0,0.00470758]
[1752250917350,1.269683,117130.0,117120.0,0.00470758]
[1752250917647,0.73819,117130.0,117120.0,0.22274518]
[1752250917843,0.73819,117130.0,117120.0,0.04903758]
[1752250918041,1.71887225,117130.0,117120.0,0.00470758]
[1752250918249,1.71883225,117130.0,117120.0,0.00470758]
[1752250918650,1.71883225,117130.0,117120.0,0.00170758]
[1752250918850,1.71883225,117130.0,117120.0,0.00670758]
[1752250919053,1.71883225,117130.0,117120.0,0.01170758]
[1752250919054,0.641283,117130.0,117120.0,0.01170758]
[1752250919252,0.91977925,117130.0,117120.0,0.01170758]
[1752250919552,1.269603,117130.0,117120.0,0.01170758]
[1752250919947,1.71879225,117130.0,117120.0,0.01170758]
[1752250920147,1.71879225,117130.0,117120.0,0.01180758]
[1752250920453,1.98955225,117130.0,117120.0,0.01180758]
[1752250920649,0.04559,117100.0,117090.0,0.30109475]
[1752250920948,0.40639,117100.0,117090.0,0.30109475]
[1752250921150,0.47099,117110.0,117100.0,0.1707368]